bitfinex/quotes_ETHUSD_20220201
["timestamp","ask_amount","ask_price","bid_price","bid_amount"]
[1643751482714,10.44833799,2796.5,2796.4,0.086625]
[1643751482914,10.61413799,2796.5,2796.4,0.086625]
[1643751483112,11.5124376,2796.5,2796.4,0.086625]
[1643751483710,9.30754722,2796.5,2796.4,0.086625]
[1643751484753,6.8,2796.4,2795.8,0.3246]
[1643751484960,6.8,2796.4,2795.2,0.1787]
[1643751484961,0.99999999,2796.1,2795.2,0.1787]
[1643751485169,4.32724068,2796.0,2795.2,0.1787]
[1643751485363,1.44344761,2795.9,2795.2,0.1787]
[1643751485559,2.62528434,2795.8,2795.2,0.1787]
[1643751485758,1.32712717,2795.7,2795.2,0.1787]
[1643751485961,2.07751479,2795.6,2794.6,0.1787]
[1643751486163,2.24331479,2795.6,2794.6,0.1787]
[1643751486358,2.24331479,2795.6,2794.5,0.1787]
[1643751486558,2.24331479,2795.6,2794.3,0.1787]
[1643751486958,0.1658,2795.6,2794.3,0.1787]
[1643751487159,0.41011624,2795.5,2794.3,0.1787]
[1643751487361,0.69234,2794.9,2794.3,0.1787]
[1643751487560,0.34488524,2794.4,2794.3,0.1787]
[1643751487958,0.34488524,2794.4,2794.3,3.94889894]
[1643751488418,0.34488524,2794.4,2794.3,1.0733]
[1643751488617,0.69234,2794.9,2794.3,0.1787]
[1643751488819,0.69234,2794.9,2794.4,0.8945813]
[1643751489621,0.69234,2794.9,2794.3,0.1787]
[1643751489819,0.44268654,2794.8,2794.3,0.1787]
[1643751491822,0.44268654,2794.8,2794.4,0.07559785]
[1643751492079,0.1658,2795.6,2794.5,0.25449348]
[1643751492268,1.1473,2796.2,2794.6,0.07559348]
[1643751492269,0.1658,2796.1,2794.6,0.07559348]
[1643751492568,1.44728803,2796.0,2794.7,0.1787]
[1643751492769,0.1658,2795.9,2794.7,0.1787]
[1643751492971,0.38728189,2794.8,2794.6,1.1787]
[1643751493173,0.38728189,2794.8,2794.7,4.82004621]
[1643751493371,0.1658,2796.1,2794.8,0.1789]
[1643751493573,1.44830785,2796.0,2794.8,0.1789]
[1643751493773,2.21544816,2795.9,2794.8,0.1789]
[1643751493977,2.44830784,2795.8,2794.8,0.1789]
[1643751494172,0.6717159,2796.3,2794.8,0.1789]
[1643751494173,4.20990513,2795.7,2794.8,0.1789]
[1643751494374,1.44830785,2795.6,2794.3,0.1658]
[1643751494573,2.25859106,2795.5,2794.4,0.0755985]
[1643751494775,0.44223914,2794.6,2794.5,0.1658]
[1643751495174,0.516,2795.7,2794.5,0.07559546]
[1643751495375,0.516,2796.0,2794.6,0.25429546]
[1643751495583,1.44949939,2795.9,2794.7,0.07559546]
[1643751495804,1.44949939,2795.9,2794.5,0.1787]
[1643751496005,3.54022994,2795.8,2794.6,0.07558983]
[1643751496208,3.54022994,2795.8,2794.5,0.1787]
[1643751496209,1.44949939,2795.7,2794.5,0.1787]
[1643751496405,1.44949939,2795.7,2794.6,0.07559541]
[1643751496406,2.27782515,2795.6,2794.6,0.07559541]
[1643751496605,1.44949939,2795.5,2794.6,0.07559541]
[1643751496904,0.516,2796.0,2794.5,0.1787]
[1643751496905,2.40835579,2795.9,2794.5,0.1787]
[1643751497106,0.90850647,2795.3,2794.6,0.0755949]
[1643751497310,0.33721899,2794.9,2794.6,0.0755949]
[1643751497510,0.3034971,2794.9,2794.6,0.9701099]
[1643751497709,0.3034971,2794.9,2794.7,0.0755949]
[1643751497911,0.90850647,2795.3,2794.7,0.0755949]
[1643751498411,0.90850647,2795.3,2794.7,0.2542949]
[1643751498609,0.90850647,2795.3,2794.7,0.1787]
[1643751499214,0.90850647,2795.3,2794.8,0.07559274]
[1643751499569,0.41246936,2795.2,2794.7,0.1787]
[1643751499967,0.6717159,2796.1,2794.7,0.1787]
[1643751500171,1.45221605,2796.0,2794.9,0.01283479]
[1643751500366,1.45221605,2795.9,2795.0,0.07559065]
[1643751500567,1.45221605,2796.3,2795.0,0.07559065]
[1643751500775,1.8594318,2797.0,2795.1,0.17894]
[1643751500776,1.45221605,2796.2,2795.1,0.17894]
[1643751500967,1.45221605,2796.1,2795.3,0.89421]
[1643751501171,0.33625039,2795.9,2795.4,4.15672656]
[1643751501369,0.33625039,2795.9,2795.5,0.1787]
[1643751501565,0.33625039,2795.9,2795.5,1.1787]
[1643751501766,0.33625039,2795.9,2795.5,0.1787]
[1643751502367,0.33625039,2795.9,2795.4,0.1787]
[1643751502567,0.91288067,2795.7,2795.3,0.4787]
[1643751503614,0.33625039,2795.9,2795.3,0.4787]
[1643751503817,0.33625039,2795.9,2795.3,2.44152882]
[1643751504214,0.33625039,2795.9,2795.3,3.44152882]
[1643751504415,0.33625039,2795.9,2795.3,2.44152882]
[1643751504615,0.33625039,2795.9,2795.3,3.44152882]
[1643751504816,1.07523039,2795.9,2795.3,1.4787]
[1643751505020,1.07523039,2795.9,2795.3,0.1787]
[1643751505218,1.45345345,2795.8,2795.3,0.1787]
[1643751506021,0.38615598,2795.4,2795.3,0.1787]
[1643751506617,0.38615598,2795.4,2795.3,2.7787]
[1643751507051,0.38615598,2795.4,2795.3,0.1787]
[1643751507251,0.38615598,2795.4,2795.2,0.1787]
[1643751508253,0.73898,2795.9,2795.2,0.1787]
[1643751508458,1.44408365,2795.8,2795.1,2.976328]
[1643751508660,1.44408365,2795.8,2795.1,1.0731022]
[1643751509458,0.37706553,2795.2,2795.1,1.0731022]
[1643751511018,0.73898,2795.9,2795.1,1.0731022]
[1643751511221,1.45323469,2795.8,2795.1,1.0731022]
[1643751512221,0.35511634,2795.5,2795.1,1.0731022]
[1643751512420,0.35511634,2795.5,2795.1,0.8944022]
[1643751513525,0.35511634,2795.5,2795.0,0.1787]
[1643751513728,0.35511634,2795.5,2794.8,0.1787]
[1643751514324,0.3372184,2794.9,2794.8,0.1787]
[1643751514570,0.3372184,2794.9,2794.8,0.25429336]
[1643751515672,0.3372184,2794.9,2794.8,0.1787]
[1643751516481,7.1372184,2794.9,2794.8,0.1787]
[1643751516672,7.1372184,2794.9,2793.8,0.1789]
[1643751516872,0.71772726,2794.3,2793.9,0.07560829]
[1643751517072,7.1372184,2794.9,2794.0,0.07560829]
[1643751517271,7.1372184,2794.9,2793.8,0.07560829]
[1643751517272,0.38873274,2794.2,2793.8,0.07560829]
[1643751517472,0.34985947,2794.2,2793.9,0.07560829]
[1643751517673,0.34985947,2794.2,2794.0,0.07560829]
[1643751517874,2.516,2794.8,2793.6,0.57639994]
[1643751517875,0.516,2794.8,2793.8,0.07560829]
[1643751518173,1.45433759,2794.7,2793.9,0.07561771]
[1643751518416,1.45433759,2794.7,2793.6,1.47127894]
[1643751518417,0.9703503,2794.7,2794.0,0.07561742]
[1643751518617,2.20193115,2794.6,2793.6,1.47127894]
[1643751518824,0.74043531,2794.3,2793.6,1.47127894]
[1643751519017,0.41807924,2794.0,2793.6,2.36614894]
[1643751519618,0.74043531,2794.3,2793.6,2.36614894]
[1643751521424,0.43568318,2794.0,2793.6,2.36614894]
[1643751525464,0.516,2795.0,2793.7,1.91348973]
[1643751525668,2.05816317,2795.4,2794.0,0.894783]
[1643751525669,2.3564159,2795.4,2794.0,0.894783]
[1643751525917,1.1877159,2795.4,2794.1,2.0800079]
[1643751526318,1.1877159,2795.4,2794.1,0.3]
[1643751526516,0.31976519,2794.4,2794.0,0.1789]
[1643751526722,0.31976519,2794.4,2793.8,0.1789]
[1643751526723,1.88918118,2794.3,2793.8,0.1789]
[1643751526916,1.88918118,2794.3,2793.7,0.1789]
[1643751527121,0.31976519,2794.4,2793.7,0.1789]
[1643751527720,0.746221,2793.8,2793.7,0.1789]
[1643751528017,0.746221,2793.8,2793.4,0.1789]
[1643751528217,0.31976519,2794.4,2793.4,0.1789]
[1643751529225,1.25254384,2793.8,2793.4,0.1789]
[1643751529420,0.33291093,2793.8,2793.3,0.1789]
[1643751529656,0.516,2794.6,2793.3,2.0879909]
[1643751529857,0.516,2794.6,2793.3,2.74832389]
[1643751530257,0.516,2794.6,2793.3,0.83923299]
[1643751530759,0.40018903,2793.9,2793.4,0.66033299]
[1643751530956,0.40018903,2793.9,2793.3,0.83923299]
[1643751531158,0.40018903,2793.9,2793.4,0.66033299]
[1643751531657,0.516,2794.6,2793.5,1.93636363]
[1643751531860,0.516,2794.6,2793.5,2.11526363]
[1643751532058,0.516,2794.6,2793.5,0.1789]
[1643751533058,0.3711016,2794.0,2793.5,2.07817272]
[1643751533330,0.3711016,2794.0,2793.5,0.4789]
[1643751533922,0.78796414,2794.1,2793.5,0.4789]
[1643751534121,0.78796414,2794.1,2793.5,2.3825563]
[1643751534323,0.516,2794.9,2793.5,2.3825563]
[1643751535324,0.67268178,2794.2,2793.5,2.3825563]
[1643751535523,1.06122727,2794.2,2793.5,2.3825563]
[1643751536323,1.06122727,2794.2,2793.5,0.4789]
[1643751537666,0.95510455,2794.2,2793.5,0.4789]
[1643751537865,0.38854549,2794.2,2793.5,0.4789]
[1643751538071,1.166,2795.1,2793.6,0.17894]
[1643751538267,1.7625,2795.3,2793.7,0.1789]
[1643751538470,1.44676168,2795.2,2793.8,0.07560974]
[1643751538669,1.44676168,2795.2,2793.9,0.1789]
[1643751538869,1.44676168,2795.2,2794.0,0.07560974]
[1643751539069,0.36748833,2794.7,2794.0,0.96678249]
[1643751539271,0.36748833,2794.7,2794.1,0.07560974]
[1643751540478,0.36748833,2794.7,2794.1,0.25450974]
[1643751540672,0.36748833,2794.7,2794.2,0.07560974]
[1643751541119,0.36748833,2794.7,2794.3,0.07560974]
[1643751541120,0.89841914,2794.5,2794.3,0.07560974]
[1643751541321,0.89841914,2794.5,2794.4,0.07560974]
[1643751541518,0.89841914,2794.5,2793.8,0.1789]
[1643751541722,0.89841914,2794.5,2793.9,0.07561235]
[1643751541923,1.1877159,2795.3,2794.0,0.1789]
[1643751542121,1.305934,2795.2,2794.1,0.07561235]
[1643751542524,1.305934,2795.2,2794.2,0.07561235]
[1643751542723,0.32765905,2794.2,2793.9,0.07561235]
[1643751543024,1.51599999,2795.3,2794.0,0.37179901]
[1643751543025,0.80552098,2794.3,2794.0,0.37179901]
[1643751543224,0.80552098,2794.3,2794.1,0.19289901]
[1643751543425,0.516,2795.3,2794.2,0.19289901]
[1643751543624,0.516,2795.3,2793.8,0.1789]
[1643751543625,1.30608322,2795.2,2794.3,0.19289901]
[1643751543824,1.30608322,2795.2,2793.8,0.1789]
[1643751544124,1.30608322,2795.1,2793.9,0.19214187]
[1643751544324,1.30608322,2795.1,2794.0,0.1789]
[1643751544579,1.30608322,2795.1,2794.1,0.19214187]
[1643751544779,1.30608322,2795.1,2794.2,0.19214187]
[1643751544983,0.41921187,2794.0,2793.8,0.1789]
[1643751545181,0.82767095,2794.4,2793.9,0.07561309]
[1643751546887,0.82767095,2794.4,2793.2,3.5797501]
[1643751546888,0.99999999,2794.2,2793.5,0.1789]
[1643751547084,0.99999999,2794.2,2793.6,0.07562606]
[1643751547085,1.95753564,2794.1,2793.6,0.07562606]
[1643751547284,1.44153564,2794.0,2793.3,0.07562606]
[1643751547486,0.4209222,2793.4,2793.3,0.07562606]
[1643751547685,0.4209222,2793.4,2793.2,0.07562606]
[1643751548093,0.4209222,2793.4,2793.3,0.07562606]
[1643751548316,0.4209222,2793.4,2793.0,0.07562606]
[1643751548521,0.4209222,2793.4,2792.9,0.1789]
[1643751548522,0.4209222,2793.4,2793.1,0.07562606]
[1643751548719,0.4209222,2793.4,2793.2,0.07562606]
[1643751548921,0.4209222,2793.4,2793.3,0.07562606]
[1643751549322,0.4209222,2793.4,2792.8,0.73595905]
[1643751549522,0.4209222,2793.4,2792.9,0.07562606]
[1643751549722,0.4209222,2793.4,2793.0,0.07562606]
[1643751549927,0.4209222,2793.4,2793.1,0.07562606]
[1643751550126,0.4209222,2793.4,2793.2,0.07562606]
[1643751550521,0.4209222,2793.4,2793.3,0.07562606]
[1643751550722,2.74129988,2793.4,2793.3,0.07562606]
[1643751551224,9.00729988,2793.4,2793.3,0.07562606]
[1643751551422,6.6869222,2793.4,2793.3,0.07562606]
[1643751551637,0.85437689,2793.0,2792.7,0.1789]
[1643751551822,0.516,2793.2,2792.8,0.1361849]
[1643751552859,0.74483274,2793.6,2792.9,0.1361849]
[1643751553463,0.74483274,2793.6,2793.4,0.017218]
[1643751553664,0.69483274,2793.6,2793.4,0.017218]
[1643751554463,3.94707041,2793.5,2793.4,0.017218]
[1643751554866,6.02140022,2793.5,2793.4,0.15342683]
[1643751555069,3.94707041,2793.5,2793.4,0.017218]
[1643751555271,7.37205507,2793.5,2793.4,0.017218]
[1643751555910,5.31237128,2793.5,2793.4,0.017218]
[1643751556110,3.94707041,2793.5,2793.4,0.017218]
[1643751556511,5.31252078,2793.5,2793.4,0.017218]
[1643751557311,5.31252078,2793.5,2792.2,5.1216]
[1643751557510,0.8478797,2792.9,2792.3,0.13630937]
[1643751557711,0.75618702,2792.9,2792.4,0.13630937]
[1643751557914,0.75618702,2792.9,2792.5,0.31520937]
[1643751558114,0.75618702,2792.9,2792.6,0.13630937]
[1643751558312,0.34707041,2793.5,2792.7,0.13630937]
[1643751558514,0.34707041,2793.5,2792.1,1.9695061]
[1643751558515,0.34707041,2793.5,2792.8,0.13630937]
[1643751558715,0.34707041,2793.5,2792.9,0.13630937]
[1643751558917,0.34707041,2793.5,2793.0,0.13630937]
[1643751559115,0.34707041,2793.5,2793.1,0.13630937]
[1643751559315,0.34707041,2793.5,2793.2,0.13630937]
[1643751559316,0.79657548,2793.4,2793.2,0.13630937]
[1643751559560,0.79657548,2793.4,2793.3,0.13630937]
[1643751559765,2.20695212,2793.4,2793.3,0.13630937]
[1643751560269,0.79657548,2793.4,2793.3,0.13630937]
[1643751561269,0.34707041,2793.5,2793.3,0.13630937]
[1643751561470,0.34707041,2793.5,2793.4,0.13630937]
[1643751562267,1.19155605,2793.5,2793.4,0.13630937]
[1643751564014,4.14155605,2793.5,2793.4,0.13630937]
[1643751566319,1.19155605,2793.5,2793.4,0.13630937]
[1643751567461,1.19155605,2793.5,2792.6,0.84978078]
[1643751567462,2.67673049,2793.5,2792.6,0.84978078]
[1643751567664,1.48517444,2793.4,2792.7,0.07563777]
[1643751567863,1.37045605,2793.5,2792.8,0.07563777]
[1643751568061,1.37045605,2793.5,2792.9,0.07563777]
[1643751568266,1.37045605,2793.5,2793.0,0.07563777]
[1643751568464,1.37045605,2793.5,2793.1,0.07563777]
[1643751568663,1.37045605,2793.5,2792.5,2.00888078]
[1643751568664,1.37045605,2793.5,2793.2,0.07563777]
[1643751568866,1.37045605,2793.5,2792.5,2.00888078]
[1643751568867,1.37045605,2793.5,2793.3,0.07563777]
[1643751569067,1.37045605,2793.5,2793.4,0.07563526]
[1643751569266,1.37045605,2793.5,2792.7,0.67088078]
[1643751569465,1.37045605,2793.5,2792.8,0.07563526]
[1643751569665,1.37045605,2793.5,2792.9,0.07563526]
[1643751569865,1.37045605,2793.5,2793.0,0.07563526]
[1643751570066,1.37045605,2793.5,2792.6,0.74651604]
[1643751570267,1.37045605,2793.5,2792.7,0.07563526]
[1643751570566,1.37045605,2793.5,2792.8,0.07563526]
[1643751570819,1.37045605,2793.5,2792.9,0.07563526]
[1643751571016,1.37045605,2793.5,2793.0,0.07563526]
[1643751571215,1.37045605,2793.5,2793.1,0.07563526]
[1643751571417,1.19155605,2793.5,2793.2,0.07563526]
[1643751571618,1.19155605,2793.5,2793.3,0.07563526]
[1643751571817,1.19155605,2793.5,2793.4,0.07563526]
[1643751572017,1.19155605,2793.5,2792.6,0.74651604]
[1643751572018,2.69095255,2793.5,2792.6,0.74651604]
[1643751572218,0.37503117,2792.7,2792.6,0.74651604]
[1643751572419,0.84448564,2793.5,2792.6,0.74651604]
[1643751573327,0.84448564,2793.5,2792.6,1.69692106]
[1643751573526,0.37646784,2793.0,2792.7,0.74651604]
[1643751573726,0.84448564,2793.5,2792.8,0.07563526]
[1643751573926,0.84448564,2793.5,2792.9,0.07563526]
[1643751574129,0.84448564,2793.5,2793.0,0.07563526]
[1643751574327,0.84448564,2793.5,2792.6,0.95040502]
[1643751574565,2.51274366,2793.4,2792.5,0.1789]
[1643751574770,1.51280438,2793.3,2792.4,0.1789]
[1643751574965,1.51280438,2793.3,2792.3,0.1789]
[1643751575164,2.02880438,2793.3,2792.3,0.1789]
[1643751575366,0.78590318,2792.6,2792.3,0.1789]
[1643751575564,0.35785226,2792.3,2792.2,0.1789]
[1643751575763,0.35785226,2792.3,2792.1,0.1789]
[1643751576765,0.516,2792.9,2792.1,0.1789]
[1643751578069,0.1789,2793.0,2792.1,1.07336369]
[1643751578320,0.1789,2793.1,2792.1,0.89446369]
[1643751578725,0.1789,2793.2,2792.1,0.89446369]
[1643751578924,1.07445,2793.2,2792.1,0.89446369]
[1643751579324,1.07327269,2793.2,2792.1,0.89446369]
[1643751579526,0.73674145,2792.7,2792.1,0.89446369]
[1643751579724,0.4274742,2792.6,2792.1,0.89446369]
[1643751580324,0.4274742,2792.6,2792.0,0.89446369]
[1643751580528,0.4274742,2792.6,2791.9,0.1789]
[1643751580727,0.9434742,2792.6,2791.7,0.1789]
[1643751580926,0.40738176,2791.7,2791.6,1.07336369]
[1643751581129,0.81513999,2792.2,2791.6,1.07336369]
[1643751581526,0.81513999,2792.2,2791.6,0.1789]
[1643751581527,0.80545161,2792.2,2791.6,0.1789]
[1643751582161,1.32145161,2792.2,2791.6,0.1789]
[1643751582362,0.32570956,2792.1,2791.5,0.01215263]
[1643751582561,0.32030685,2792.1,2791.5,0.01215263]
[1643751583566,0.32030685,2792.1,2791.2,0.1789]
[1643751583771,0.32030685,2792.1,2791.1,5.32336366]
[1643751583772,0.49940685,2792.1,2791.1,4.60799997]
[1643751584068,0.49940685,2792.1,2791.1,4.42889997]
[1643751584466,0.85121635,2791.5,2791.0,1.07356369]
[1643751584666,0.85121635,2791.5,2790.8,1.07356369]
[1643751584869,1.36721635,2791.5,2790.8,0.89446369]
[1643751585066,1.36721635,2791.5,2790.6,3.3829469]
[1643751585466,1.36721635,2791.5,2790.6,4.19162443]
[1643751585664,0.44467099,2790.8,2790.6,4.19162443]
[1643751585920,0.44467099,2790.8,2790.6,0.80867753]
[1643751586517,1.36721635,2791.5,2790.6,0.80867753]
[1643751587318,1.36721635,2791.5,2790.5,0.1791]
[1643751587519,1.36721635,2791.5,2790.4,0.1791]
[1643751587821,0.41576597,2790.7,2790.4,0.1791]
[1643751588223,0.41576597,2790.7,2790.3,1.12452553]
[1643751588423,0.41576597,2790.7,2790.3,0.1791]
[1643751588622,0.41576597,2790.7,2790.2,0.1791]
[1643751589423,2.2206005,2790.6,2789.8,0.87982814]
[1643751589673,0.41576597,2790.7,2789.8,0.87982814]
[1643751589873,0.93176597,2790.7,2789.8,0.87982814]
[1643751590076,0.33187277,2790.1,2789.8,0.87982814]
[1643751590476,0.33187277,2790.1,2789.8,0.70072814]
[1643751590674,0.91724617,2790.5,2789.8,0.70072814]
[1643751591483,0.91724617,2790.5,2789.6,0.1792]
[1643751591678,0.34366917,2790.2,2789.6,0.1792]
[1643751591878,0.516,2790.7,2789.6,0.1792]
[1643751592078,3.96101159,2792.4,2789.8,0.8961193]
[1643751592079,0.1792,2790.9,2789.8,0.8961193]
[1643751592280,3.77776022,2791.4,2789.9,0.01220989]
[1643751592281,0.1791,2791.2,2789.9,0.01220989]
[1643751592479,1.6866,2791.4,2789.9,2.58238085]
[1643751592480,0.1791,2791.3,2789.9,2.58238085]
[1643751592679,0.1791,2791.3,2789.9,2.76132085]
[1643751592883,0.36487991,2790.8,2790.0,1.0]
[1643751593320,0.36487991,2790.8,2789.9,1.73674989]
[1643751593529,0.36487991,2790.8,2790.0,0.1791]
[1643751593725,0.1791,2791.3,2790.0,0.1791]
[1643751593928,3.22277663,2792.0,2790.0,0.1791]
[1643751593929,0.1789,2791.5,2790.5,0.0124929]
[1643751594133,0.1787,2791.9,2790.5,0.0124929]
[1643751594926,0.33258504,2791.0,2790.5,0.0124929]
[1643751595131,0.84430412,2791.5,2790.7,0.85556656]
[1643751595329,0.1786,2791.4,2790.7,0.85556656]
[1643751596133,0.1786,2791.4,2790.5,0.0124929]
[1643751596335,6.8,2791.3,2790.1,0.1791]
[1643751596535,0.01205264,2790.8,2790.1,0.1791]
[1643751596737,0.1791,2790.7,2789.7,1.1457]
[1643751597165,0.1791,2790.7,2789.7,3.1457]
[1643751597166,0.3542333,2790.3,2789.7,3.1457]
[1643751597366,0.3542333,2790.3,2789.9,0.79358432]
[1643751597570,0.3542333,2790.3,2789.7,3.1457]
[1643751598170,0.3542333,2790.3,2789.7,1.1457]
[1643751601726,0.1791,2790.7,2790.0,0.71861291]
[1643751601931,4.80089,2791.2,2790.1,1.89467849]
[1643751601932,0.1791,2791.0,2790.1,1.89467849]
[1643751602129,0.1791,2791.1,2790.1,1.89467849]
[1643751602325,0.1791,2791.3,2790.1,1.89467849]
[1643751602526,0.1791,2791.4,2790.1,1.91317365]
[1643751602726,0.32759245,2790.7,2790.1,3.21317365]
[1643751602925,0.32759245,2790.7,2790.1,0.3]
[1643751603431,0.32759245,2790.7,2789.9,0.3]
[1643751603829,0.32759245,2790.7,2789.8,1.65804]
[1643751604030,0.32759245,2790.7,2789.8,1.47894]
[1643751604231,0.41779343,2790.0,2789.8,0.47894]
[1643751604437,0.41779343,2790.0,2789.8,1.47894]
[1643751604875,0.41779343,2790.0,2789.8,0.47894]
[1643751605076,0.92293126,2790.3,2789.9,5.02894]
[1643751605276,0.92293126,2790.3,2790.0,1.0]
[1643751605677,0.92293126,2790.3,2789.7,0.1791]
[1643751605876,0.92293126,2790.3,2789.6,0.1792]
[1643751606075,0.92293126,2790.3,2789.5,0.1792]
[1643751606076,0.38170154,2790.0,2789.5,0.1792]
[1643751607175,0.38170154,2790.0,2789.5,1.1792]
[1643751607675,0.59978072,2790.3,2789.6,4.95]
[1643751608316,0.41142668,2789.9,2789.6,4.95]
[1643751608520,0.59978072,2790.3,2789.6,4.95]
[1643751609127,9.18661,2791.1,2789.6,4.95]
[1643751609320,9.18661,2791.1,2789.6,8.04965882]
[1643751609721,0.3629183,2790.3,2789.6,8.34965882]
[1643751609923,0.33572778,2789.8,2789.6,0.3]
[1643751610324,0.33572778,2789.8,2789.5,0.3]
[1643751610524,0.33572778,2789.8,2789.4,1.27108262]
[1643751610723,0.33572778,2789.8,2789.4,3.15839115]
[1643751611222,0.33572778,2789.8,2789.5,1.0]
[1643751612177,0.90458392,2790.3,2789.5,1.0]
[1643751613074,0.34190644,2789.9,2789.6,1.88565678]
[1643751613678,0.34190644,2789.9,2789.5,1.0]
[1643751613879,0.34190644,2789.9,2789.4,3.03212467]
[1643751614077,0.34190644,2789.9,2789.5,1.0]
[1643751615082,0.34190644,2789.9,2789.4,0.3]
[1643751615278,0.34190644,2789.9,2789.3,0.65814]
[1643751616522,0.34190644,2789.9,2789.4,1.89235855]
[1643751616723,0.34190644,2789.9,2789.4,3.19235855]
[1643751617327,0.34190644,2789.9,2789.4,1.3]
[1643751617525,0.34190644,2789.9,2789.4,2.20351519]
[1643751617725,0.34190644,2789.9,2789.6,0.68821336]
[1643751618327,0.34190644,2789.9,2789.5,1.0]
[1643751618732,0.34190644,2789.9,2789.4,0.3]
[1643751618932,0.34190644,2789.9,2789.4,2.25489006]
[1643751619569,0.34190644,2789.9,2789.6,0.89197104]
[1643751620975,0.34190644,2789.9,2789.6,2.87441025]
[1643751621178,0.1792,2790.2,2789.6,3.17441025]
[1643751621382,0.1792,2790.6,2789.6,3.17441025]
[1643751622379,0.4269598,2790.0,2789.6,3.12958954]
[1643751622979,0.1792,2790.6,2789.6,3.12958954]
[1643751624227,0.44992679,2790.0,2789.6,3.12958954]
[1643751624826,0.44992679,2790.0,2789.7,1.0]
[1643751625029,0.44992679,2790.0,2789.8,1.91867469]
[1643751625427,0.44992679,2790.0,2789.6,1.19197104]
[1643751625428,0.44992679,2790.0,2789.6,4.02082725]
[1643751625630,0.44992679,2790.0,2789.6,5.02082725]
[1643751626229,0.44992679,2790.0,2789.7,0.89446369]
[1643751627468,0.44992679,2790.0,2789.8,1.88804869]
[1643751627674,0.44992679,2790.0,2789.8,2.18804869]
[1643751628072,0.44992679,2790.0,2789.8,3.08251238]
[1643751628272,0.1792,2790.4,2789.8,3.08251238]
[1643751629273,0.1792,2790.4,2789.9,0.89446369]
[1643751629672,0.41317476,2790.0,2789.8,3.08251238]
[1643751630072,0.41317476,2790.0,2789.9,4.94446369]
[1643751630273,0.41205459,2790.0,2789.9,0.89446369]
[1643751631815,0.1792,2790.4,2789.9,0.89446369]
[1643751632218,0.1792,2790.4,2790.0,0.89446369]
[1643751632617,0.16950538,2790.4,2790.0,0.89446369]
[1643751632819,0.16950538,2790.4,2789.9,0.89446369]
[1643751633020,0.35410828,2790.0,2789.7,2.64183573]
[1643751633619,0.35410828,2790.0,2789.9,0.90087769]
[1643751633819,0.35410828,2790.0,2789.7,1.34183573]
[1643751634121,0.35410828,2790.0,2789.9,0.90113683]
[1643751636171,0.16950538,2790.4,2789.9,0.90113683]
[1643751636373,0.16950538,2790.4,2790.0,0.90113683]
[1643751636973,0.16950538,2790.4,2789.9,0.90113683]
[1643751637172,0.44661184,2790.3,2789.9,0.90113683]
[1643751638516,0.44661184,2790.3,2790.0,0.90113683]
[1643751640819,0.44661184,2790.3,2790.1,0.90113683]
[1643751641519,0.44661184,2790.3,2790.0,0.90113683]
[1643751642074,0.44661184,2790.3,2790.1,0.90113683]
[1643751642676,0.44661184,2790.3,2790.0,0.90113683]
[1643751642876,0.44661184,2790.3,2789.8,1.34183573]
[1643751642877,0.44661184,2790.3,2790.1,0.90113683]
[1643751643079,0.44661184,2790.3,2789.8,1.34183573]
[1643751648431,0.44661184,2790.3,2789.9,1.34183573]
[1643751648628,0.44661184,2790.3,2789.8,1.34183573]
[1643751651473,0.44661184,2790.3,2789.6,1.1445]
[1643751651474,1.51425807,2790.2,2789.7,1.34183573]
[1643751651675,1.51425807,2790.2,2789.6,2.48633573]
[1643751651875,1.69345807,2790.2,2789.6,1.34183573]
[1643751652075,1.51425807,2790.1,2789.6,1.34183573]
[1643751652476,2.00770416,2790.0,2789.4,1.52103573]
[1643751652675,0.89886083,2789.7,2789.4,1.52103573]
[1643751652877,0.36554985,2789.6,2789.4,1.52103573]
[1643751653519,0.36554985,2789.6,2789.4,0.1792]
[1643751653921,0.36554985,2789.6,2789.4,1.52103573]
[1643751654122,0.36554985,2789.6,2789.4,0.1792]
[1643751655220,0.26554985,2789.6,2789.4,0.1792]
[1643751655422,0.26554985,2789.6,2789.2,1.34183573]
[1643751656522,0.26554985,2789.6,2789.1,1.64183573]
[1643751656722,0.26554985,2789.6,2789.1,1.34183573]
[1643751657365,0.26554985,2789.6,2789.2,1.34183573]
[1643751657566,0.26554985,2789.6,2789.1,1.34183573]
[1643751657967,0.26554985,2789.6,2789.2,1.34183573]
[1643751658570,0.26554985,2789.6,2789.1,1.34183573]
[1643751660818,0.26554985,2789.6,2789.0,1.34183573]
[1643751662017,0.26554985,2789.6,2789.1,0.8964092]
[1643751662220,0.70336501,2789.9,2789.1,2.23824493]
[1643751662618,0.70336501,2789.9,2789.1,3.23824493]
[1643751662818,0.1792,2790.3,2789.1,3.23824493]
[1643751663020,1.51441159,2790.2,2789.2,1.34183573]
[1643751663222,0.1792,2790.1,2789.2,4.39739385]
[1643751663430,0.1792,2790.1,2789.3,1.72849099]
[1643751663626,0.41558756,2789.9,2789.3,0.25]
[1643751663825,0.41558756,2789.9,2789.3,1.25]
[1643751664029,0.41558756,2789.9,2789.4,0.8963]
[1643751664230,0.41558756,2789.9,2789.3,0.25]
[1643751665668,0.41558756,2789.9,2789.4,0.92407143]
[1643751666278,0.1792,2790.3,2789.4,2.22407143]
[1643751666476,1.51436428,2790.2,2789.4,3.01652143]
[1643751666675,0.1792,2790.8,2789.6,0.90831714]
[1643751666878,2.67663815,2791.0,2789.6,0.90831714]
[1643751666879,1.51431517,2790.7,2789.9,0.25]
[1643751667074,1.85703815,2791.2,2789.9,0.25]
[1643751667075,1.51431517,2790.6,2790.1,0.87120409]
[1643751667276,1.09737178,2790.9,2790.1,0.87120409]
[1643751667277,0.33830514,2790.5,2790.1,0.87120409]
[1643751667475,0.1791,2790.8,2790.1,0.87120409]
[1643751667675,1.51425645,2790.7,2790.1,0.87120409]
[1643751667875,1.51425645,2790.7,2789.9,1.44606]
[1643751668079,1.51425645,2790.7,2790.1,0.89609]
[1643751668327,1.51425645,2790.7,2790.2,0.8960585]
[1643751668926,1.88692576,2790.7,2790.2,0.8960585]
[1643751669126,1.51425645,2790.6,2790.2,0.8960585]
[1643751669537,2.0,2790.5,2789.9,0.4291]
[1643751669831,1.51425645,2790.4,2789.9,0.25]
[1643751670229,0.1792,2790.3,2789.9,0.25]
[1643751670431,0.71644256,2790.0,2789.9,0.25]
[1643751671328,0.33367022,2790.2,2789.9,0.25]
[1643751672569,1.10635195,2790.2,2789.9,0.25]
[1643751673567,1.51449091,2790.1,2789.9,0.25]
[1643751673969,1.10635195,2790.2,2789.9,0.25]
[1643751674168,1.51449809,2790.1,2789.9,0.25]
[1643751675473,1.10635195,2790.2,2789.9,0.25]